bitfinex-derivatives/quotes_SOLF0:USTF0_20260310
["timestamp","ask_amount","ask_price","bid_price","bid_amount"]
[1773172094925,3.46035989,86.05,86.019,10.462]
[1773172095231,3.98247351,86.058,86.012,3.96260849]
[1773172095831,3.98247351,86.058,86.027,10.461]
[1773172096630,3.98247351,86.058,85.947,2.02322053]
[1773172096631,3.46035989,86.07,86.025,3.96260849]
[1773172098435,3.46035989,86.07,86.033,10.46]
[1773172099132,3.46035989,86.06,86.011,3.96260849]
[1773172099336,7.47616647,86.06,86.011,3.96260849]
[1773172100435,7.47616647,86.06,86.023,10.461]
[1773172100635,7.47616647,86.06,85.978,20.934]
[1773172100636,4.01580658,86.049,85.991,4.04914865]
[1773172100836,3.46035989,86.04,85.991,4.04914865]
[1773172101036,4.01580658,86.029,85.977,4.04914865]
[1773172101232,3.46035989,86.02,85.977,4.04914865]
[1773172101636,4.01580658,86.029,85.977,4.04914865]
[1773172102340,4.01580658,86.029,85.989,10.465]
[1773172102732,4.01580658,86.029,85.977,4.04914865]
[1773172103734,4.01580658,86.029,85.995,10.465]
[1773172104636,4.01580658,86.029,85.986,10.466]
[1773172104838,14.47680658,86.029,85.986,10.466]
[1773172106546,4.01580658,86.024,85.972,10.467]
[1773172106748,4.01580658,86.019,85.963,4.04914865]
[1773172107541,4.01580658,86.015,85.963,4.04914865]
[1773172108244,4.01580658,86.036,85.976,4.04914865]
[1773172108445,4.01580658,86.034,85.976,4.04914865]
[1773172108739,4.01580658,86.032,85.976,4.04914865]
[1773172108941,10.461,86.027,85.983,10.466]
[1773172109144,8.85911162,86.026,85.983,10.466]
[1773172109443,8.85911162,86.025,85.983,10.466]
[1773172109642,8.85911162,86.024,85.983,10.466]
[1773172109845,10.461,86.027,85.983,10.466]
[1773172109846,8.85911162,86.023,85.983,10.466]
[1773172110144,8.85911162,86.022,85.983,10.466]
[1773172110336,10.461,86.027,85.983,10.466]
[1773172110535,8.85893803,86.026,85.983,10.466]
[1773172110734,14.47680658,86.027,85.983,10.466]
[1773172110735,8.85893803,86.025,85.983,10.466]
[1773172111037,8.85893803,86.024,85.983,10.466]
[1773172111234,8.85893803,86.023,85.983,10.466]
[1773172111434,10.462,86.021,85.976,14.51614865]
[1773172112341,14.47780658,86.021,85.976,14.51614865]
[1773172112542,4.01580658,86.02,85.976,14.51614865]
[1773172114939,10.7716646,86.045,85.93,9.2679974]
[1773172114940,8.85824235,86.03,85.981,4.04914865]
[1773172115136,4.01580658,86.044,85.981,4.04914865]
[1773172115337,4.01580658,86.042,85.981,4.04914865]
[1773172115648,4.01580658,86.04,85.981,4.04914865]
[1773172115845,4.01580658,86.038,85.981,4.04914865]
[1773172116040,4.01580658,86.036,85.981,4.04914865]
[1773172116241,10.46,86.033,85.994,10.465]
[1773172116643,8.85824235,86.032,85.994,10.465]
[1773172116841,4.01580658,86.029,85.966,4.04914865]
[1773172117145,4.01580658,86.027,85.966,4.04914865]
[1773172117338,4.01580658,86.025,85.966,4.04914865]
[1773172117538,10.463,86.01,85.972,10.468]
[1773172117943,4.01580658,86.023,85.966,4.04914865]
[1773172117944,4.01580658,86.021,85.966,4.04914865]
[1773172118544,10.462,86.02,85.983,10.466]
[1773172118940,14.47780658,86.02,85.966,4.04914865]
[1773172119138,9.2679974,86.03,85.966,4.04914865]
[1773172119139,10.462,86.017,85.976,10.467]
[1773172120149,14.47780658,86.015,85.976,10.467]
[1773172121049,4.01580658,86.014,85.976,10.467]
[1773172121642,3.46085651,86.01,85.976,10.467]
[1773172123647,3.46085651,85.99,85.949,4.04914865]
[1773172124049,3.46085651,85.97,85.935,4.04914865]
[1773172124248,3.46085651,85.97,85.943,10.471]
[1773172124450,3.46085651,85.98,85.943,10.471]
[1773172129552,7.17163162,85.98,85.943,10.471]
[1773172129756,7.17163162,85.97,85.936,10.472]
[1773172130250,7.17163162,85.97,85.922,3.92771247]
[1773172130251,3.46085651,85.95,85.929,10.473]
[1773172130455,3.46085651,85.96,85.929,10.473]
[1773172130651,3.46085651,85.97,85.93,3.92771247]
[1773172131455,3.46085651,85.97,85.935,10.472]
[1773172132156,3.46085651,85.98,85.935,10.472]
[1773172132351,7.17163162,85.98,85.935,10.472]
[1773172132654,3.46085651,85.98,85.942,3.92771247]
[1773172132860,10.465,85.989,85.942,3.92771247]
[1773172133060,3.46085651,85.98,85.942,3.92771247]
[1773172135251,10.466,85.987,85.942,3.92771247]
[1773172135449,3.46085651,85.99,85.942,3.92771247]
[1773172135450,3.46085651,85.98,85.942,3.92771247]
[1773172136460,3.46085651,85.98,85.944,10.471]
[1773172137563,3.46085651,85.99,85.942,3.92771247]
[1773172138164,7.17163162,85.99,85.942,3.92771247]
[1773172139258,3.46085651,86.0,85.951,3.92771247]
[1773172139657,3.71077511,86.004,85.951,3.92771247]
[1773172139855,3.71077511,86.004,85.964,3.92771247]
[1773172140259,3.71077511,86.004,85.973,10.467]
[1773172140465,10.463,86.009,85.973,10.467]
[1773172140761,3.71077511,86.018,85.974,3.92771247]
[1773172141265,3.46085651,86.02,85.982,10.466]
[1773172141667,3.46085651,86.01,85.961,3.92771247]
[1773172141863,3.71077511,86.033,85.961,3.92771247]
[1773172142066,3.46085651,86.03,85.981,3.92771247]
[1773172142467,3.46085651,86.02,85.981,3.92771247]
[1773172143768,3.71077511,86.029,85.981,3.92771247]
[1773172143769,3.46085651,86.01,85.981,3.92771247]
[1773172144067,3.71077511,86.009,85.959,3.92771247]
[1773172144266,3.71077511,86.009,85.95,3.46085651]
[1773172144267,3.46085651,86.01,85.967,3.92771247]
[1773172144467,10.462,86.017,85.967,3.92771247]
[1773172145367,10.462,86.017,85.973,10.467]
[1773172145564,3.46085651,86.03,85.98,3.46085651]
[1773172145768,3.46085651,86.03,85.981,3.92771247]
[1773172145961,3.46085651,86.03,85.993,10.465]
[1773172146162,3.71077511,86.038,85.991,3.92771247]
[1773172147362,3.71077511,86.038,85.999,10.464]
[1773172147566,3.45922739,86.03,85.991,3.92771247]
[1773172148472,3.45922739,86.03,85.991,14.39271247]
[1773172149070,3.45922739,86.03,85.992,3.92771247]
[1773172150466,13.92022739,86.03,85.992,3.92771247]
[1773172150670,3.45922739,86.02,85.992,3.92771247]
[1773172150867,3.71077511,86.054,85.992,3.92771247]
[1773172151065,3.45922739,86.04,85.992,3.92771247]
[1773172151268,3.45922739,86.04,85.995,10.465]
[1773172151775,3.45922739,86.04,85.995,14.39271247]
[1773172151977,3.45922739,86.04,85.999,10.464]
[1773172152171,3.45922739,86.04,85.999,14.39171247]
[1773172152368,3.45922739,86.04,86.0,3.92771247]
[1773172153570,3.45922739,86.03,86.0,3.92771247]
[1773172153971,10.46,86.038,86.0,3.92771247]
[1773172154677,3.45922739,86.03,85.991,10.465]
[1773172154976,3.45922739,86.03,85.991,14.39271247]
[1773172155176,3.45922739,86.03,85.992,3.92771247]
[1773172155780,3.45922739,86.03,85.994,3.92771247]
[1773172156369,3.71077511,86.037,86.002,10.464]
[1773172156577,10.459,86.039,86.002,10.464]
[1773172157670,3.45922739,86.04,86.002,10.464]
[1773172158079,3.45922739,86.03,85.995,10.465]
[1773172158679,3.45922739,86.02,85.995,10.465]
[1773172158981,3.45922739,86.03,85.995,10.465]
[1773172163477,3.71077511,86.037,85.995,10.465]
[1773172163675,3.45922739,86.03,85.995,10.465]
[1773172166097,3.45922739,86.03,86.001,10.464]
[1773172166384,10.75105305,86.072,85.98,3.45922739]
[1773172166385,3.45922739,86.04,86.002,3.81978722]
[1773172168385,10.459,86.039,86.002,3.81978722]
[1773172168783,10.459,86.039,86.003,10.464]
[1773172168978,4.00869713,86.073,86.002,3.81978722]
[1773172169184,3.45922739,86.05,86.002,3.81978722]
[1773172170483,3.45922739,86.04,86.01,10.463]
[1773172172387,3.45922739,86.04,86.002,3.81978722]
[1773172172388,3.45922739,86.04,86.003,10.464]
[1773172173686,10.46,86.038,86.003,10.464]
[1773172174190,3.45922739,86.04,86.004,3.81978722]
[1773172175690,4.00869713,86.064,86.006,3.81978722]
[1773172175886,3.45922739,86.04,86.006,3.81978722]
[1773172177083,10.46,86.038,86.006,3.81978722]
[1773172177490,3.45922739,86.03,86.002,10.464]
[1773172180293,3.45922739,86.03,86.007,10.463]
[1773172181086,3.45922739,86.04,86.008,3.81978722]
[1773172181486,8.83503403,86.057,86.011,3.81978722]
[1773172181692,3.45922739,86.07,86.011,3.81978722]
[1773172181998,3.45922739,86.07,86.021,3.81978722]
[1773172182399,3.45922739,86.06,86.021,3.81978722]
[1773172183397,10.457,86.063,86.025,10.461]
[1773172183697,4.00869713,86.069,86.025,14.28078722]
[1773172183698,3.45922739,86.06,86.025,14.28078722]
[1773172184295,3.45922739,86.05,86.017,10.462]
[1773172185406,3.45922739,86.05,86.02,10.462]
[1773172185696,3.45922739,86.05,86.018,3.81978722]
[1773172188798,10.457,86.055,86.019,10.462]
[1773172189002,3.45922739,86.05,86.019,10.462]
[1773172190206,3.45922739,86.06,86.025,4.04484308]
[1773172190605,10.457,86.062,86.026,14.50584308]
[1773172190811,3.45922739,86.06,86.027,4.04484308]
[1773172193511,8.78759693,86.059,86.027,4.04484308]
[1773172193706,3.45922739,86.06,86.027,4.04484308]
[1773172193913,3.85851247,86.065,86.027,4.04484308]
[1773172194511,3.45922739,86.06,86.027,4.04484308]
[1773172195214,3.45922739,86.06,86.028,10.461]
[1773172195414,3.45922739,86.06,86.028,14.50584308]
[1773172196511,10.78008276,86.094,86.035,4.04484308]
[1773172196716,3.85851247,86.097,86.035,4.04484308]
[1773172196717,3.45922739,86.08,86.035,4.04484308]
[1773172197419,3.45922739,86.08,86.044,10.459]
[1773172197915,3.85851247,86.085,86.044,14.50384308]
[1773172198113,14.29434054,86.111,86.007,20.927]
[1773172198114,10.78008276,86.105,86.047,4.04484308]
[1773172198315,3.45922739,86.09,86.047,4.04484308]
[1773172198510,8.76119718,86.089,86.047,4.04484308]
[1773172198720,3.45922739,86.08,86.021,4.04484308]
[1773172198922,3.45922739,86.07,86.021,4.04484308]
[1773172200214,3.85851247,86.099,86.025,4.04484308]
[1773172200419,3.85851247,86.069,86.025,4.04484308]
[1773172200615,3.45922739,86.05,86.025,4.04484308]
[1773172200815,8.77128852,86.068,86.025,4.04484308]
[1773172201015,8.77128852,86.068,85.979,21.60219907]
[1773172201016,3.45922739,86.09,86.031,4.04484308]
[1773172201220,3.45922739,86.06,86.031,4.04484308]
[1773172201520,3.45922739,86.07,86.021,1.43397042]
[1773172201916,3.45922739,86.07,86.036,10.46]
[1773172202117,3.85851247,86.079,86.037,1.43397042]
[1773172202425,3.45922739,86.07,86.037,1.43397042]
[1773172202814,3.85851247,86.079,86.037,1.43397042]
[1773172203020,3.85851247,86.079,86.045,10.459]
[1773172203215,3.85851247,86.079,86.02,3.45922739]
[1773172203216,3.45922739,86.07,86.02,3.45922739]
[1773172203415,3.85851247,86.069,86.029,10.46]
[1773172203726,7.31773986,86.08,86.03,1.35664967]
[1773172204122,3.45922739,86.07,86.03,1.35664967]
[1773172204825,3.85851247,86.078,86.038,10.459]
[1773172205524,3.45922739,86.07,86.038,10.459]
[1773172205825,3.85851247,86.059,86.016,1.3471412]
[1773172206119,3.45922739,86.07,86.02,3.45922739]
[1773172206325,3.85851247,86.075,86.021,1.3471412]
[1773172207022,3.45922739,86.07,86.021,1.3471412]
[1773172207425,3.85851247,86.059,86.028,10.461]
[1773172208622,3.45922739,86.05,86.021,11.8081412]
[1773172209021,3.85851247,86.049,86.008,1.36290884]
[1773172209223,3.85851247,86.049,86.013,10.462]
[1773172210424,3.4573028,86.05,86.008,1.36290884]
[1773172210620,3.4573028,86.06,86.008,1.36290884]
[1773172211127,3.85851247,86.049,86.008,1.36290884]
[1773172211322,3.85851247,86.039,85.995,1.38564016]
[1773172211523,3.4573028,86.03,85.995,1.38564016]
[1773172211728,3.4573028,86.03,85.997,10.464]
[1773172212126,3.4573028,86.05,85.995,1.38564016]
[1773172212523,3.4573028,86.04,85.995,1.38564016]
[1773172212924,3.4573028,86.04,86.01,10.463]
[1773172215329,3.4573028,86.04,85.995,1.38564016]
[1773172217428,3.4573028,86.04,86.008,10.463]
[1773172218630,3.4573028,86.04,86.0,10.464]
[1773172218830,14.29434054,86.082,85.963,20.938]
[1773172218831,7.31581527,86.03,85.982,1.38554268]
[1773172219636,3.4573028,86.02,85.992,10.465]
[1773172220035,3.96166891,86.029,85.982,1.38554268]
[1773172220536,3.96166891,86.029,85.998,10.464]
[1773172222433,3.96166891,86.029,85.959,21.60219907]
[1773172222434,3.4573028,86.01,85.969,1.3627912]
[1773172222938,3.96166891,86.009,85.976,10.467]
[1773172223634,3.96166891,86.032,85.977,1.22341046]
[1773172223833,3.4573028,86.03,85.977,1.22341046]
[1773172224333,3.96166891,86.029,85.977,1.22341046]
[1773172224632,3.96166891,86.027,85.987,10.466]
[1773172225137,3.96166891,86.027,85.994,10.465]
[1773172225438,3.4573028,86.03,85.994,10.465]
[1773172225836,3.4573028,86.03,85.989,1.25730396]
[1773172226038,3.96166891,86.029,85.989,1.25730396]
[1773172227740,3.4573028,86.02,85.989,1.25730396]
[1773172228239,3.96166891,86.009,85.963,1.31333488]
[1773172228741,3.4573028,86.02,85.963,1.31333488]
[1773172229342,3.96166891,86.019,85.963,1.31333488]
[1773172229642,3.4573028,86.01,85.977,10.467]
[1773172231247,3.4573028,86.01,85.983,10.466]
[1773172231442,3.4573028,86.03,85.981,1.32425864]
[1773172231742,3.96166891,86.038,85.995,10.465]
[1773172231943,3.96166891,86.029,85.981,1.32425864]
[1773172233443,3.96166891,86.029,85.987,10.466]
[1773172234443,3.96166891,86.029,85.994,10.465]
[1773172235847,3.96166891,86.029,86.001,10.464]
[1773172236349,3.96166891,86.019,85.966,1.38843871]
[1773172236645,3.4573028,86.01,85.966,1.38843871]
[1773172237544,3.96166891,86.019,85.983,10.466]
[1773172238951,3.4573028,85.99,85.951,1.39463288]
[1773172239341,3.4573028,86.01,85.951,1.39463288]
[1773172239849,3.96166891,86.008,85.963,1.42022011]
[1773172241449,3.96166891,86.008,85.972,10.467]
[1773172243053,3.4573028,86.02,85.979,10.467]
[1773172243549,3.96166891,86.029,85.989,10.465]
[1773172243756,3.96166891,86.029,85.981,1.37900993]
[1773172244550,3.96166891,86.029,86.001,10.464]
[1773172244751,3.4573028,86.04,86.001,10.464]
[1773172245051,3.96166891,86.039,86.001,10.464]
[1773172245254,3.96166891,86.029,85.971,1.41646956]
[1773172245454,7.41897171,86.02,85.971,1.41646956]
[1773172245954,3.96166891,86.019,85.971,1.41646956]
[1773172246147,3.96166891,86.019,85.978,10.467]
[1773172247455,3.4573028,86.02,85.978,10.467]
[1773172247456,3.84769308,86.009,85.978,10.467]
[1773172248158,3.84769308,86.009,85.97,10.468]
[1773172248358,3.84769308,86.009,85.961,1.38338466]
[1773172249247,3.84769308,86.009,85.977,10.467]
[1773172250148,3.4573028,86.03,85.984,1.3731552]
[1773172250349,7.15954417,86.03,85.984,1.3731552]
[1773172250954,3.70224137,86.029,85.984,1.3731552]
[1773172251360,3.70224137,86.029,85.987,10.466]
[1773172254355,14.16324137,86.029,85.987,10.466]
[1773172254560,3.4573028,86.02,85.984,1.3731552]
[1773172255864,3.4573028,86.02,85.986,10.466]
[1773172256157,3.70224137,86.028,85.986,10.466]
[1773172257162,3.70224137,86.027,85.986,10.466]
[1773172257560,3.4573028,86.02,85.986,10.466]
[1773172259162,3.70224137,86.027,85.986,10.466]
[1773172259866,3.70224137,86.027,85.992,10.465]
[1773172260267,3.70224137,86.027,85.984,1.3731552]
[1773172261060,3.4573028,86.02,85.984,1.3731552]
[1773172261565,3.70224137,86.023,85.984,11.8391552]
[1773172261758,3.4573028,86.02,85.984,11.8391552]
[1773172262360,3.70224137,86.019,85.984,10.466]
[1773172262568,3.4573028,86.0,85.977,10.467]
[1773172262864,3.4573028,86.02,85.961,1.38421516]
[1773172263071,3.4573028,86.02,85.984,10.466]
[1773172263368,3.4573028,86.02,85.976,1.38421516]
[1773172263369,3.70224137,86.018,85.976,1.38421516]
[1773172263567,3.4573028,86.01,85.976,1.38421516]
[1773172264165,3.4573028,86.01,85.984,10.466]
[1773172266775,3.70224137,86.018,85.984,10.466]
[1773172266980,12.44066578,86.017,85.984,10.466]
[1773172267170,8.73842441,86.016,85.984,10.466]
[1773172267370,8.73842441,86.015,85.984,10.466]
[1773172267572,3.4573028,86.01,85.963,1.21175889]
[1773172269378,3.4573028,86.01,85.977,10.467]
[1773172269778,3.70224137,86.012,85.977,10.467]
[1773172270478,3.70224137,86.012,85.96,3.4573028]
[1773172270479,3.70224137,86.012,85.974,1.23878982]
[1773172270672,3.4573028,86.02,85.974,1.23878982]
[1773172270872,8.7426716,86.019,85.974,1.23878982]
[1773172271081,8.74266138,86.018,85.974,1.23878982]
[1773172271276,3.70224137,86.024,85.981,1.23428367]
[1773172272085,3.70224137,86.036,85.999,1.23428367]
[1773172273380,3.70224137,86.036,86.003,10.464]
[1773172274481,8.74034083,86.035,86.003,10.464]
[1773172274677,3.70224137,86.036,86.003,10.464]
[1773172275285,8.73990455,86.035,86.003,10.464]
[1773172275581,14.16024137,86.049,86.007,1.17426118]
[1773172275785,8.73983909,86.048,86.007,1.17426118]
[1773172275984,8.73983909,86.047,86.007,1.17426118]
[1773172276186,8.73983909,86.046,86.01,10.463]
[1773172276382,8.73983909,86.045,86.01,10.463]
[1773172276581,8.73983909,86.044,86.01,10.463]
[1773172276886,3.70224137,86.029,85.981,1.17426118]
[1773172279385,3.70224137,86.029,85.988,10.466]
[1773172280885,3.45938092,86.02,85.981,10.466]
[1773172281087,3.72867554,86.009,85.981,10.466]
[1773172281887,3.72867554,86.009,85.974,10.467]
[1773172285579,3.72867554,85.999,85.964,10.468]
[1773172286586,3.72867554,85.999,85.957,10.469]
[1773172286980,3.45938092,86.01,85.96,3.45938092]
[1773172287293,8.73228932,86.009,85.961,1.41503397]
[1773172287487,3.45938092,86.01,85.961,1.41503397]
[1773172287688,8.73885484,86.009,85.961,1.41503397]
[1773172287984,3.45938092,86.01,85.961,1.41503397]
[1773172288290,3.45938092,86.01,85.975,10.467]
[1773172288992,3.72867554,86.009,85.968,10.468]
[1773172289192,3.72867554,86.007,85.968,10.468]
[1773172289385,3.72867554,86.007,85.961,1.41503397]
[1773172290494,3.72867554,86.007,85.974,10.467]
[1773172291592,3.72867554,86.007,85.967,10.468]
[1773172292593,3.72867554,85.989,85.945,1.43503681]
[1773172293595,3.72867554,85.989,85.957,10.469]
[1773172293794,10.83522179,86.026,85.951,1.42614646]
[1773172293795,3.45938092,86.0,85.951,1.42614646]
[1773172294192,3.72867554,85.999,85.951,1.42614646]
[1773172294894,3.72867554,85.999,85.962,10.469]
[1773172295896,3.72867554,85.989,85.955,10.469]
[1773172296093,3.45938092,85.98,85.955,10.469]
[1773172297196,3.72867554,85.989,85.955,10.469]
[1773172297394,3.72867554,85.979,85.941,10.471]
[1773172297596,3.45938092,85.97,85.941,10.471]
[1773172298297,3.72867554,85.959,85.912,1.40653441]
[1773172299197,3.72867554,85.959,85.92,3.45938092]
[1773172299391,3.72867554,85.959,85.912,1.40653441]
[1773172300394,3.72867554,85.959,85.92,10.474]
[1773172301496,3.72867554,85.959,85.927,10.473]
[1773172301996,3.45938092,85.97,85.927,11.90218759]
[1773172302492,7.18805646,85.97,85.927,11.90218759]
[1773172303895,3.72867554,85.969,85.927,11.90218759]
[1773172304196,3.45938092,85.96,85.927,11.90218759]
[1773172304895,3.72867554,85.949,85.902,1.49641581]
[1773172305103,3.45938092,85.94,85.902,1.49641581]
[1773172306201,3.45938092,85.94,85.903,10.476]
[1773172306596,3.45938092,85.94,85.902,1.49641581]
[1773172306900,3.72867554,85.949,85.91,10.475]
[1773172308401,3.45938092,85.94,85.902,11.97241581]
[1773172310302,3.73767082,85.929,85.895,10.477]
[1773172313003,3.73767082,85.929,85.887,10.478]
[1773172313300,7.19705174,85.91,85.861,1.41134661]
[1773172314103,3.73767082,85.91,85.879,10.479]
[1773172315599,7.19705174,85.91,85.879,10.479]
[1773172316206,3.73767082,85.91,85.879,10.479]
[1773172319808,3.73767082,85.922,85.873,1.42066294]
[1773172320009,3.45938092,85.92,85.873,1.42066294]
[1773172320206,3.73767082,85.922,85.873,1.42066294]
[1773172320406,14.44440431,85.983,85.841,2.02591188]
[1773172320407,3.73767082,85.935,85.893,1.39548032]
[1773172320809,3.45938092,85.95,85.893,1.39548032]
[1773172321010,3.73767082,85.949,85.901,1.39548032]
[1773172321607,3.73767082,85.966,85.922,10.474]
[1773172321804,3.73767082,85.966,85.92,4.84707877]
[1773172322012,3.73767082,85.989,85.931,1.38769785]
[1773172322210,3.73767082,85.989,85.955,10.469]
[1773172322406,3.73767082,85.989,85.87,163.028]
[1773172322407,3.73767082,86.004,85.951,1.38769785]
[1773172322612,3.73767082,86.004,85.96,3.45938092]
[1773172322820,3.73767082,86.004,85.96,13.92838092]
[1773172323506,3.73767082,86.004,85.96,10.469]
[1773172325612,3.73767082,86.004,85.967,10.468]
[1773172325915,3.73767082,86.004,85.961,1.38133028]
[1773172326316,3.73767082,86.004,85.966,10.468]
[1773172328411,3.73767082,86.004,85.889,34.88]
[1773172328412,3.73767082,86.055,85.99,3.45938092]
[1773172328715,3.73767082,86.055,85.914,162.944]
[1773172328716,3.73767082,86.029,85.957,1.38939568]
[1773172329020,3.73767082,86.019,85.97,1.38939568]
[1773172329219,3.73767082,86.019,85.97,4.8487766]
[1773172329814,3.45938092,86.03,85.982,10.466]
[1773172330112,3.73767082,86.037,85.982,11.93982974]
[1773172330317,3.73767082,86.019,85.972,10.467]
[1773172330516,3.73767082,86.019,85.968,1.47382974]
[1773172330517,3.45938092,86.01,85.968,1.47382974]
[1773172331321,3.45938092,86.01,85.969,10.468]
[1773172333517,3.45938092,86.0,85.959,10.469]
[1773172333718,3.46153199,86.0,85.959,10.469]
[1773172333914,3.73767082,85.999,85.959,10.469]
[1773172335815,3.73767082,86.021,85.98,3.46153199]
[1773172336019,3.73767082,86.021,85.971,1.46647527]
[1773172336219,3.73767082,86.021,85.98,10.466]
[1773172339522,3.46153199,86.02,85.98,10.466]
[1773172340317,3.46153199,86.04,85.991,1.74593409]
[1773172340826,3.74989805,86.029,85.989,10.465]
[1773172341418,3.74989805,86.029,85.981,10.466]
[1773172342018,10.461,86.026,85.981,10.466]
[1773172342425,3.46153199,86.02,85.981,10.466]
[1773172343028,3.74989805,86.009,85.973,10.467]
[1773172343221,3.46153199,86.0,85.96,1.74248154]
[1773172343622,3.74989805,86.009,85.96,5.20401353]
[1773172344220,3.74989805,86.009,85.964,10.468]
[1773172344726,3.74989805,85.989,85.931,1.79419094]
[1773172344922,3.46153199,85.98,85.931,1.79419094]
[1773172345624,3.46153199,85.98,85.942,10.471]
[1773172345816,3.46153199,85.98,85.931,1.79419094]
[1773172346423,3.74989805,85.989,85.942,10.471]
[1773172347118,3.74989805,85.989,85.949,10.47]
[1773172347322,3.74989805,85.989,85.944,1.70282139]
[1773172348220,3.46153199,86.02,85.961,1.70282139]
[1773172348426,3.74989805,86.021,85.971,1.70282139]
[1773172349127,3.74989805,86.021,85.98,3.46153199]
[1773172349327,3.74989805,86.021,85.984,10.466]
[1773172349528,3.74989805,86.021,85.971,1.70282139]
[1773172349924,3.74989805,86.038,85.992,10.465]
[1773172350225,3.74989805,86.038,85.985,1.70466805]
[1773172350430,8.72054234,86.075,85.985,1.70466805]
[1773172350431,3.74989805,86.029,85.985,1.70466805]
[1773172350727,7.21143004,86.01,85.96,3.46153199]
[1773172351831,3.46153199,85.99,85.941,1.70227741]
[1773172352026,3.74989805,85.999,85.951,1.70227741]
[1773172352734,3.74989805,85.999,85.966,10.468]
[1773172352934,3.74989805,85.999,85.951,1.70227741]
[1773172353336,3.74989805,85.999,85.958,10.469]
[1773172355336,3.74989805,85.997,85.958,10.469]
[1773172357337,3.74989805,85.997,85.965,10.468]
[1773172358742,3.74989805,85.997,85.958,10.469]
[1773172358939,3.74989805,85.997,85.951,1.70227741]
[1773172360342,3.74989805,85.997,85.958,10.469]
[1773172362636,14.21489805,85.997,85.958,10.469]
[1773172363443,3.74989805,85.992,85.951,10.47]
[1773172364948,3.74989805,85.987,85.942,10.471]
[1773172366347,10.466,85.985,85.942,10.471]
[1773172366547,10.466,85.985,85.936,1.70126428]
[1773172366548,8.72054234,85.997,85.943,1.68885248]
[1773172366740,8.72054234,85.996,85.943,1.68885248]
[1773172366937,10.465,85.994,85.943,1.68885248]
[1773172367948,8.71522761,85.997,85.954,10.47]
[1773172368247,8.71522761,85.996,85.954,10.47]
[1773172368542,3.72982581,85.996,85.954,10.47]
[1773172370350,8.7168024,86.001,85.961,1.70808162]
[1773172370650,8.7168024,86.0,85.961,1.70808162]
[1773172370848,3.85238509,86.001,85.961,1.70808162]
[1773172371046,12.56919354,86.0,85.961,1.70808162]
[1773172371246,3.85238509,86.0,85.961,1.70808162]
[1773172371445,3.85238509,85.997,85.921,1.70919117]
[1773172372553,3.85238509,85.994,85.951,10.47]
[1773172373445,14.31738509,85.992,85.951,10.47]
[1773172373850,3.85238509,85.991,85.951,10.47]
[1773172376943,3.85238509,85.991,85.941,1.70919117]
[1773172377150,3.85238509,85.991,85.748,111.95488508]
[1773172377151,3.85238509,85.979,85.926,1.73856878]
[1773172377447,3.85238509,85.979,85.875,28.7840516]
[1773172377448,3.85238509,85.977,85.888,1.75064653]
[1773172377652,3.46643431,85.94,85.891,1.75064653]
[1773172378446,3.46643431,85.94,85.908,10.475]
[1773172379152,3.85238509,85.939,85.891,1.75064653]
[1773172379453,3.46643431,85.93,85.891,1.75064653]
[1773172380254,3.46643431,85.95,85.891,1.75064653]
[1773172381151,3.46643431,85.95,85.901,1.75456654]
[1773172381349,3.46643431,85.95,85.906,12.23872516]
[1773172381756,3.46643431,85.96,85.911,1.76372516]
[1773172382459,3.46643431,85.96,85.918,10.474]
[1773172382952,7.3188194,85.96,85.918,10.474]
[1773172383951,7.3188194,85.96,85.925,10.473]
[1773172385659,3.85238509,85.96,85.925,10.473]
[1773172385958,7.3188194,85.96,85.925,10.473]
[1773172386159,3.85238509,85.949,85.915,10.474]
[1773172387851,3.46643431,85.96,85.92,12.28659405]
[1773172389360,3.46643431,85.96,85.927,10.473]
[1773172392151,3.85238509,85.964,85.927,10.473]
[1773172392758,3.46643431,85.96,85.927,10.473]
[1773172395560,3.46484188,85.96,85.927,10.473]
[1773172395761,3.85238509,85.959,85.927,10.473]
[1773172396864,3.46484188,85.96,85.93,1.7871538]
[1773172397063,3.46484188,85.97,85.93,1.7871538]
[1773172397363,3.85238509,85.969,85.93,1.7871538]
[1773172397662,3.46484188,85.97,85.932,1.7830386]
[1773172398052,3.46484188,85.98,85.932,1.7830386]
[1773172398252,7.31722697,85.98,85.932,1.7830386]
[1773172398454,7.31722697,85.98,85.942,10.471]
[1773172398455,3.85238509,85.979,85.942,10.471]